bitfinex/quotes_ETHUSD_20260225
["timestamp","ask_amount","ask_price","bid_price","bid_amount"]
[1771998231361,0.001,1886.6,1886.1,7.82547025]
[1771998232383,0.001,1886.5,1886.1,7.82547025]
[1771998237371,0.001,1886.5,1886.2,6.5]
[1771998238168,5.29947519,1887.0,1886.4,6.5]
[1771998239691,5.29919205,1887.1,1886.6,6.5]
[1771998239863,1.32478406,1887.1,1886.6,6.5]
[1771998240690,7.67476719,1887.2,1886.6,6.5]
[1771998241875,7.67476719,1887.2,1886.6,7.82508905]
[1771998242478,7.67476719,1887.2,1886.6,7.82512323]
[1771998243187,0.001,1887.4,1886.6,7.82512323]
[1771998243379,1.32557701,1887.4,1887.1,6.5]
[1771998243578,1.32559262,1887.4,1887.1,6.5]
[1771998243785,0.001,1887.4,1887.1,6.5]
[1771998244205,1.32429282,1887.8,1887.3,6.5]
[1771998244407,1.32429282,1887.8,1887.1,9.87529836]
[1771998244713,1.32429282,1887.8,1887.2,6.5]
[1771998245685,1.32394217,1888.3,1887.2,6.5]
[1771998246011,1.32394217,1888.3,1887.6,6.5]
[1771998246303,1.32394217,1888.3,1887.7,6.5]
[1771998246705,1.32394217,1888.3,1887.4,1.32457206]
[1771998246706,1.32366177,1888.7,1887.8,6.5]
[1771998246884,3.37529836,1888.4,1887.5,6.5]
[1771998247081,3.37529836,1888.4,1887.2,7.82468744]
[1771998247483,1.32366177,1888.7,1887.4,6.5]
[1771998247484,3.37529836,1888.6,1887.4,6.5]
[1771998247883,1.32380195,1888.5,1887.4,6.5]
[1771998248209,3.37529836,1888.4,1887.4,6.5]
[1771998248926,1.32380195,1888.5,1887.4,6.5]
[1771998249207,1.32380195,1888.5,1887.4,7.82456959]
[1771998249394,1.32380195,1888.5,1887.6,6.5]
[1771998250581,8.67050619,1888.6,1887.6,6.5]
[1771998250782,3.37529836,1888.2,1887.1,7.82478406]
[1771998250982,3.37529836,1888.4,1887.2,6.5]
[1771998251183,8.67050619,1888.6,1887.4,6.5]
[1771998251677,14.91467885,1888.6,1887.4,6.5]
[1771998253307,11.53938049,1888.6,1887.4,7.82451241]
[1771998253615,11.53938049,1888.6,1887.6,6.5]
[1771998253814,14.91467885,1888.6,1887.6,6.5]
[1771998255388,0.67416841,1888.3,1887.6,7.17416841]
[1771998255907,0.67416841,1888.1,1887.4,6.5]
[1771998256085,0.67416841,1888.2,1887.6,6.5]
[1771998258120,1.32408241,1888.1,1887.6,6.5]
[1771998260221,1.32408241,1888.1,1887.5,0.67526841]
[1771998260222,0.67416841,1887.8,1887.5,0.0011]
[1771998260717,0.67416841,1887.7,1887.2,0.0011]
[1771998260899,1.99825082,1888.1,1887.4,7.17416841]
[1771998261088,1.99825082,1888.1,1887.4,6.5]
[1771998261411,0.67416841,1888.0,1887.4,6.5]
[1771998261613,1.99825082,1888.1,1887.4,6.5]
[1771998261987,0.67416841,1888.0,1887.4,6.5]
[1771998262319,1.32422268,1887.9,1887.4,7.17416841]
[1771998262700,1.32422268,1887.9,1887.5,6.5]
[1771998263813,1.32422268,1887.9,1887.5,7.17416841]
[1771998264220,1.32408241,1888.2,1887.6,0.67416841]
[1771998264416,1.99825082,1888.2,1887.5,7.17416841]
[1771998266810,1.32487206,1888.4,1887.8,7.17416841]
[1771998267018,1.99904047,1888.4,1887.8,6.5]
[1771998267621,1.32487206,1888.4,1887.8,7.17416841]
[1771998268716,1.32487206,1888.4,1887.9,0.67416841]
[1771998268912,0.001,1888.4,1887.8,7.17416841]
[1771998271726,0.001,1888.4,1887.9,6.5]
[1771998271899,0.001,1888.3,1887.9,6.5]
[1771998272300,0.001,1888.3,1887.9,7.17416841]
[1771998272497,0.001,1888.3,1888.0,0.67416841]
[1771998273226,0.67416841,1889.0,1888.2,0.67416841]
[1771998273429,1.99804047,1888.4,1887.9,6.5]
[1771998273828,0.67416841,1888.3,1887.7,6.5]
[1771998274031,1.99804047,1888.4,1887.7,7.17416841]
[1771998274201,1.32387206,1888.4,1887.8,0.67416841]
[1771998274702,1.32387206,1888.4,1887.9,6.5]
[1771998274918,1.32387206,1888.4,1887.7,6.5]
[1771998274919,0.67416841,1888.2,1887.7,6.5]
[1771998275447,0.67416841,1888.3,1887.7,6.5]
[1771998275931,1.32401228,1888.2,1887.7,6.5]
[1771998276515,0.67416841,1888.1,1887.5,6.5011]
[1771998276725,0.67416841,1888.0,1887.5,6.5011]
[1771998277332,1.32401228,1888.2,1887.5,6.5011]
[1771998277812,5.29604914,1888.3,1887.5,6.5011]
[1771998282615,5.29604914,1888.3,1887.6,6.5]
[1771998283715,5.29604914,1888.3,1887.5,0.0011]
[1771998283912,1.32408241,1888.1,1887.5,0.0011]
[1771998284342,3.37162433,1888.0,1887.5,0.0011]
[1771998285044,3.37162433,1887.8,1887.4,0.0011]
[1771998285542,1.32408241,1888.1,1886.8,9.25]
[1771998285543,3.37162433,1887.6,1886.8,9.25]
[1771998285733,3.37162433,1887.6,1887.3,0.0011]
[1771998286044,1.32450331,1887.5,1887.3,0.0011]
[1771998286248,7.27704792,1887.5,1886.8,8.64372488]
[1771998286643,7.27704792,1887.5,1886.8,9.96871043]
[1771998287148,7.27704792,1887.5,1886.9,5.89372488]
[1771998287725,7.27704792,1887.5,1886.7,5.89372488]
[1771998288542,3.37162433,1887.2,1886.7,5.89372488]
[1771998288747,5.95254461,1887.3,1886.7,5.89372488]
[1771998290125,1.32471386,1887.2,1886.7,5.89372488]
[1771998290445,7.27725847,1887.2,1886.7,5.89372488]
[1771998293055,1.32471386,1887.2,1886.7,5.89372488]
[1771998293425,7.27725847,1887.2,1886.7,5.89372488]
[1771998295152,1.32470265,1887.3,1886.7,7.21877698]
[1771998296455,1.32470265,1887.3,1886.7,5.89372488]
[1771998297239,1.32470265,1887.3,1886.8,6.16423869]
[1771998297555,0.001,1887.1,1886.8,6.16423869]
[1771998302064,0.001,1887.1,1886.8,7.4892073]
[1771998302245,7.56878524,1887.4,1886.8,7.4892073]
[1771998302556,1.32447909,1887.6,1887.0,6.16313869]
[1771998303066,1.32441091,1887.7,1887.0,6.16313869]
[1771998303754,1.32426149,1887.9,1887.2,6.16313869]
[1771998304437,1.01225146,1887.6,1887.2,6.16313869]
[1771998304751,7.19777687,1887.4,1886.8,6.16423869]
[1771998304951,7.19777687,1887.4,1886.8,7.48923329]
[1771998305134,7.19777687,1887.4,1886.8,6.16423869]
[1771998305460,7.19777687,1887.4,1886.8,7.48922229]
[1771998305661,1.32464367,1887.3,1886.8,6.16423869]
[1771998305863,11.48367048,1887.5,1886.8,7.48923214]
[1771998306434,7.19777687,1887.4,1886.8,6.16423869]
[1771998306636,7.19777687,1887.4,1886.8,7.4892249]
[1771998307033,5.29814507,1887.5,1886.8,7.4892249]
[1771998308136,7.51002872,1887.5,1886.8,7.4892249]
[1771998308335,7.19777687,1887.4,1886.8,6.16423869]
[1771998308762,1.01225146,1887.2,1886.8,6.16423869]
[1771998309338,6.18552541,1887.3,1886.8,6.16423869]
[1771998309540,7.19777687,1887.2,1886.9,0.0011]
[1771998309739,1.01225146,1887.0,1886.7,0.0011]
[1771998310042,8.52282763,1886.8,1886.6,0.0011]
[1771998310237,1.32505076,1886.8,1886.6,0.0011]
[1771998310644,8.52282763,1886.8,1886.5,0.0011]
[1771998310843,8.52282763,1886.8,1886.2,0.0011]
[1771998310844,1.01225146,1886.6,1886.2,6.16423869]
[1771998311059,8.52282763,1886.8,1886.2,6.16423869]
[1771998311940,8.52282763,1886.8,1886.2,0.0011]
[1771998311941,1.01225146,1886.4,1886.2,0.0011]
[1771998312149,2.33731638,1886.7,1886.2,6.16423869]
[1771998312372,1.32506492,1886.7,1886.2,6.16423869]
[1771998312548,2.33731638,1886.7,1886.2,6.16423869]
[1771998312748,1.32506492,1886.7,1886.2,6.16423869]
[1771998314480,1.01225146,1886.5,1886.2,0.0011]
[1771998314772,7.19777687,1886.5,1886.2,0.0011]
[1771998314977,8.52284179,1886.7,1886.2,0.0011]
[1771998315162,7.51059033,1886.7,1886.2,0.0011]
[1771998315349,1.32506492,1886.7,1886.2,6.16423869]
[1771998316176,1.01225146,1886.6,1886.2,6.16423869]
[1771998316372,7.19777687,1886.6,1886.2,0.0011]
[1771998316577,1.3249947,1886.8,1886.2,6.16423869]
[1771998317075,7.51052011,1886.8,1886.2,6.16423869]
[1771998317568,1.3249947,1886.8,1886.2,6.16423869]
[1771998318074,1.01225146,1886.7,1886.2,6.16423869]
[1771998318276,1.01225146,1886.5,1886.2,0.0011]
[1771998318984,1.3252054,1886.5,1886.2,0.0011]
[1771998320056,1.01225146,1886.3,1886.0,0.0011]
[1771998320379,6.18552541,1886.4,1886.0,0.0011]
[1771998320962,7.51070933,1886.6,1886.0,0.0011]
[1771998321284,7.51070933,1886.6,1886.0,6.16423869]
[1771998321680,7.51070933,1886.6,1886.3,0.0011]
[1771998322166,7.51070933,1886.6,1886.2,0.0011]
[1771998322365,7.51070933,1886.6,1885.9,0.0011]
[1771998322366,7.19777687,1886.3,1885.9,0.0011]
[1771998322565,1.01225146,1886.1,1885.9,0.0011]
[1771998323066,6.18552541,1886.2,1885.9,0.0011]
[1771998323266,1.32548645,1886.1,1885.9,0.0011]
[1771998323462,1.32538365,1886.3,1885.9,0.0011]
[1771998323671,6.18552541,1886.6,1885.9,6.16423869]
[1771998323875,6.18552541,1887.1,1886.2,6.16313869]
[1771998324057,1.32483028,1887.1,1886.4,6.16313869]
[1771998324457,8.52260715,1887.1,1886.4,6.16313869]
[1771998324673,6.18552541,1887.0,1886.4,6.16313869]
[1771998324871,2.33708174,1887.1,1886.4,6.16313869]
[1771998325274,1.32483028,1887.1,1886.4,6.16313869]
[1771998326289,1.32467653,1887.3,1886.6,6.31482988]
[1771998327290,7.81779603,1887.3,1886.6,6.31482988]
[1771998327967,6.4931195,1887.2,1886.4,5.93363491]
[1771998328168,1.32478406,1887.1,1886.6,5.93363491]
[1771998328562,5.29864175,1887.3,1886.6,5.93363491]
[1771998329995,11.79176125,1887.3,1886.6,5.93363491]
[1771998330799,6.4931195,1887.3,1886.6,5.93363491]
[1771998331004,1.32563494,1887.4,1886.6,7.25871794]
[1771998332190,0.001,1887.4,1886.6,7.25871794]
[1771998333895,1.3243685,1887.7,1886.8,5.93363491]
[1771998334262,1.32433234,1887.8,1886.8,5.93363491]
[1771998334863,7.81745184,1887.8,1886.8,5.93363491]
[1771998335071,0.001,1887.2,1886.8,5.93363491]
[1771998335269,0.001,1887.2,1886.8,7.25860248]
[1771998335901,1.32430609,1887.8,1887.0,5.93363491]
[1771998336983,7.81720191,1888.1,1887.0,5.93363491]
[1771998337183,7.81720191,1888.1,1887.2,5.93363491]
[1771998339697,7.81720191,1888.1,1887.2,7.25833068]
[1771998343487,6.4931195,1888.0,1887.2,7.25833068]
[1771998344014,7.81734218,1887.9,1887.2,7.25833068]
[1771998344307,7.81734218,1887.9,1887.2,5.93363491]
[1771998346415,7.81734218,1887.9,1886.8,5.93363491]
[1771998347316,7.81734218,1887.9,1887.0,5.93363491]
[1771998347485,6.4941195,1887.8,1887.0,5.93363491]
[1771998348917,1.32436298,1887.7,1887.2,5.93363491]
[1771998349412,1.32529293,1887.8,1887.3,5.93363491]
[1771998351111,0.001,1887.8,1887.4,1.32457348]
[1771998351317,0.001,1887.8,1887.5,5.93363491]
[1771998353718,0.001,1887.8,1887.6,5.93363491]
[1771998355107,7.81718541,1888.2,1887.6,5.93363491]
[1771998356410,7.81718541,1888.2,1887.6,7.25805775]
[1771998357605,7.43850336,1888.4,1887.6,7.25805775]
[1771998357800,6.1146313,1888.4,1887.7,5.94601917]
[1771998358125,7.56803187,1888.5,1887.7,5.94601917]
[1771998358311,7.56798174,1888.5,1887.9,5.94601917]
[1771998360547,0.001,1888.1,1888.0,7.27017171]
[1771998361234,1.32374168,1888.6,1888.1,5.94601917]
[1771998361437,7.43834014,1888.7,1888.1,5.94601917]
[1771998361605,1.32360978,1888.8,1888.2,5.94601917]
[1771998361917,7.43824108,1888.8,1888.2,5.94601917]
[1771998362508,7.43808286,1889.0,1888.2,7.2699788]
[1771998362938,6.1146313,1888.6,1887.6,5.94601917]
[1771998363534,6.1146313,1888.6,1887.8,5.94601917]
[1771998364604,6.1146313,1888.4,1887.6,5.94601917]
[1771998364803,6.1146313,1888.4,1887.6,7.2704449]
[1771998365005,6.1146313,1888.4,1887.6,5.94601917]
[1771998365204,6.1146313,1888.4,1887.6,7.27045066]
[1771998365821,6.1146313,1888.4,1887.6,5.94601917]
[1771998366305,6.1146313,1888.4,1887.6,7.2704458]
[1771998366735,7.43857347,1888.3,1887.6,7.2704458]
[1771998368059,1.32394217,1888.3,1887.6,7.2704458]
[1771998368231,1.32392352,1888.4,1887.6,7.2704458]
[1771998369317,7.43847772,1888.5,1887.6,7.2704458]
[1771998369644,7.43835214,1888.7,1887.8,5.94601917]
[1771998370512,1.32372084,1888.7,1887.8,5.94601917]
[1771998370710,1.32369476,1888.7,1887.8,5.94601917]
[1771998371433,7.43832606,1888.7,1888.0,5.94601917]
[1771998372130,6.1146313,1888.7,1888.0,5.94601917]
[1771998372335,7.43815292,1888.9,1888.0,5.94601917]
[1771998373133,0.001,1888.6,1888.0,5.94601917]
[1771998373517,0.001,1888.6,1888.2,5.94601917]
[1771998375565,7.43843325,1888.5,1888.0,7.2701468]
[1771998376310,1.32380195,1888.5,1888.0,7.2701468]
[1771998379335,5.29596099,1888.6,1888.1,5.94601917]
[1771998380420,5.29596099,1888.6,1887.9,5.29796481]
[1771998380421,6.1146313,1888.5,1887.9,5.94711917]
[1771998380626,5.29596099,1888.6,1887.9,5.94711917]
[1771998380627,0.6738342,1888.1,1887.9,0.0011]
[1771998380819,6.7884655,1888.1,1887.9,0.0011]
[1771998381020,6.1146313,1888.1,1887.9,0.0011]
[1771998381729,1.32403663,1888.2,1887.9,0.0011]
[1771998382551,8.11250213,1888.2,1887.9,0.0011]
[1771998382844,6.7884655,1887.9,1887.5,5.94601917]
[1771998383024,6.1146313,1887.9,1887.5,5.94601917]
[1771998383431,7.43886915,1887.9,1887.5,5.94601917]
[1771998386741,7.43886915,1887.9,1887.6,0.0011]
[1771998388626,11.38903231,1888.1,1887.6,6.17467828]
[1771998388929,7.41656497,1888.3,1887.6,7.49910187]
[1771998397874,7.41645702,1888.4,1887.7,6.17357828]
[1771998398108,7.41645702,1888.4,1887.6,6.17467828]
[1771998398643,1.32401228,1888.2,1887.6,6.17467828]
[1771998398873,6.09256891,1888.1,1887.6,6.17467828]
[1771998399078,6.09256891,1888.1,1887.6,0.0011]
[1771998400279,6.09256891,1888.1,1887.7,0.0011]
[1771998401892,6.09256891,1887.9,1887.7,0.0011]
[1771998402594,6.09256891,1887.9,1887.6,0.0011]
[1771998404481,7.41686173,1887.8,1887.6,0.0011]
[1771998407280,1.9986934,1887.8,1887.6,0.0011]
[1771998407459,6.76696949,1887.7,1887.6,0.0011]
[1771998407862,6.76696949,1887.7,1887.3,0.0011]
[1771998409363,6.09256891,1887.5,1887.3,0.0011]
[1771998410569,1.32443314,1887.6,1887.3,6.17467828]
[1771998410767,1.32443314,1887.6,1887.3,0.0011]
[1771998410768,7.41700205,1887.6,1887.3,0.0011]
[1771998411084,1.32429282,1887.8,1887.3,6.84907886]
[1771998411467,6.09256891,1887.8,1887.4,6.17357828]
[1771998412191,1.32422268,1887.9,1887.4,6.17357828]
[1771998412584,7.41679159,1887.9,1887.4,6.17357828]
[1771998412781,7.41679159,1887.9,1887.4,6.17467828]
[1771998413775,6.09256891,1887.8,1887.4,6.17467828]
[1771998416895,5.86261996,1887.6,1887.4,0.0011]
[1771998417096,0.67440058,1887.5,1887.3,0.0011]
[1771998417396,5.86261996,1887.5,1887.3,0.0011]
[1771998418872,7.18698294,1887.7,1887.3,6.35533445]
[1771998419068,5.29745192,1887.8,1887.3,6.35533445]
[1771998419069,1.32429282,1887.8,1887.4,7.02863503]
[1771998419264,1.32429282,1887.8,1887.4,6.35423445]
[1771998420400,5.86261996,1887.9,1887.4,7.02863503]
[1771998420635,1.32412967,1888.1,1887.7,7.02863503]
[1771998420791,0.001,1888.2,1888.0,0.67440058]
[1771998420993,5.29482874,1888.7,1888.2,6.35423445]
[1771998421702,5.29482874,1888.7,1888.0,1.32410817]
[1771998421888,5.86261996,1888.6,1887.8,6.35423445]
[1771998422204,5.86261996,1888.2,1887.6,6.35423445]
[1771998422708,5.86261996,1888.2,1887.4,6.35423445]
[1771998422905,1.32408241,1888.1,1887.4,6.35423445]
[1771998423092,5.86261996,1888.0,1887.4,6.35423445]
[1771998425104,7.18684264,1887.9,1887.4,6.35423445]
[1771998425490,7.18684264,1887.9,1887.4,6.35533445]
[1771998425804,7.18784264,1887.9,1887.4,6.35533445]
[1771998426602,7.18784264,1887.9,1887.4,0.0011]
[1771998426817,7.18784264,1887.9,1887.4,6.35533445]
[1771998426986,0.001,1887.9,1887.4,7.67988405]
[1771998427186,0.001,1887.9,1887.4,6.35533445]
[1771998427610,5.86361996,1887.9,1887.4,6.35533445]
[1771998429097,0.001,1887.9,1887.4,7.67990342]
[1771998429484,1.32394217,1888.3,1887.6,6.35423445]
[1771998429700,1.32385407,1888.5,1887.7,6.35423445]
[1771998430100,1.32385407,1888.5,1887.9,6.35423445]
[1771998430500,7.18614158,1888.9,1887.9,6.35423445]
[1771998431584,7.18614158,1888.9,1888.1,6.35423445]
[1771998432605,5.86261996,1888.8,1887.9,6.35423445]
[1771998433923,7.18628173,1888.7,1887.9,6.35423445]
[1771998434490,7.18628173,1888.7,1887.9,7.67844889]
[1771998436212,7.1862891,1888.7,1887.9,7.67844889]
[1771998437013,1.32366914,1888.7,1888.0,6.35423445]
[1771998437206,7.18619584,1888.9,1888.0,6.35423445]
[1771998437605,5.29408055,1889.0,1888.0,6.35423445]
[1771998437606,0.001,1888.6,1888.0,6.35423445]
[1771998438013,0.001,1888.6,1888.2,6.35423445]
[1771998439224,1.32348961,1889.0,1888.2,6.35423445]
[1771998440299,1.32348961,1889.0,1888.4,6.35423445]
[1771998441022,7.18610957,1889.0,1888.4,6.35423445]
[1771998441808,7.18610957,1889.0,1888.0,6.35423445]
[1771998442805,7.18610957,1889.0,1888.2,6.35423445]
[1771998443423,1.32348961,1889.0,1888.2,6.35423445]
[1771998443621,5.86261996,1888.9,1888.2,6.35423445]
[1771998445002,0.1520704,1890.7,1889.0,6.35423445]
[1771998445201,4.72019774,1890.9,1889.9,6.5]
[1771998445401,5.64620256,1890.8,1889.9,6.5]
[1771998445619,0.17248542,1891.0,1889.9,6.5]
[1771998445819,4.72019774,1890.9,1889.2,4.72019774]
[1771998446020,4.72019774,1890.6,1889.4,2.02313]
[1771998446208,4.72019774,1890.6,1889.5,6.99263644]
[1771998446415,0.17248542,1890.5,1889.5,6.5]
[1771998447133,1.32247143,1890.4,1889.7,6.5]
[1771998448037,0.17248542,1890.3,1889.7,6.5]
[1771998449233,1.49503041,1890.3,1889.7,6.5]
[1771998449533,5.2859068,1891.9,1890.1,6.5]
[1771998449702,0.001,1891.8,1890.8,6.5]
[1771998449903,4.72019774,1891.8,1890.8,6.5]
[1771998450132,4.72019774,1891.5,1890.5,6.5]
[1771998450621,0.001,1891.4,1890.5,6.5]
[1771998451533,0.001,1891.4,1890.5,7.82237541]
[1771998451832,0.001,1891.4,1890.5,6.5]
[1771998452027,4.72019774,1891.3,1890.5,6.5]
[1771998452401,0.001,1891.2,1890.5,7.82238675]
[1771998452606,0.001,1891.4,1890.5,6.5]
[1771998452808,0.001,1891.4,1890.5,7.82239562]
[1771998453004,1.58481188,1893.0,1891.0,4.72019774]
[1771998453209,1.32114358,1892.3,1891.1,7.8219795]
[1771998454335,0.001,1892.2,1891.1,7.82197174]
[1771998455112,0.001,1892.1,1891.1,7.82197174]
[1771998455938,4.72119774,1892.0,1891.1,6.5]
[1771998456128,0.001,1892.2,1891.1,7.82198092]
[1771998456531,0.001,1892.1,1891.2,6.5]
[1771998456725,1.32086437,1892.7,1891.5,6.5]
[1771998456925,1.32186437,1892.7,1891.5,6.5]
[1771998457245,5.36537749,1893.1,1891.2,4.72019774]
[1771998457246,0.001,1892.6,1891.9,6.5]
[1771998457443,4.72019774,1893.1,1891.9,6.5]
[1771998457615,0.001,1893.0,1891.9,6.5]
[1771998457811,4.72019774,1892.8,1891.9,6.5]
[1771998458041,0.001,1893.0,1891.9,6.5]
[1771998458042,0.08192,1892.9,1891.9,6.5]
[1771998458219,4.72019774,1892.7,1891.9,6.5]
[1771998458638,0.001,1892.6,1891.6,6.5]
[1771998458832,4.72019774,1892.4,1891.6,6.5]
[1771998459430,1.32214358,1892.3,1891.6,6.5]
[1771998460019,1.32214358,1892.3,1891.6,7.82161271]
[1771998460339,1.32114358,1892.3,1891.6,7.82161271]
[1771998460525,0.001,1892.2,1891.6,7.82161271]
[1771998461122,0.001,1892.1,1891.6,6.5]
[1771998461356,0.001,1892.1,1891.6,7.82163217]
[1771998461513,5.28455015,1892.4,1891.6,6.5]
[1771998461721,0.001,1892.3,1891.6,7.82162858]
[1771998462160,0.001,1892.2,1891.6,7.82163141]
[1771998463169,1.32104093,1892.5,1891.6,7.82163141]
[1771998463340,0.001,1892.4,1891.6,7.82163141]
[1771998464116,0.001,1892.4,1891.8,6.5]
[1771998464923,0.001,1892.6,1891.9,6.4995]
[1771998468353,4.72119774,1892.6,1891.5,6.4995]
[1771998468556,0.001,1892.6,1891.5,6.4995]
[1771998470356,1.32193416,1892.6,1891.5,7.82114193]
[1771998470657,1.32193416,1892.6,1891.5,6.4995]
[1771998470967,1.32193416,1892.6,1891.5,7.82119522]
[1771998472457,0.001,1892.6,1891.7,6.4995]
[1771998473631,4.72019774,1893.2,1892.3,6.499]
[1771998473842,4.72019774,1892.9,1892.3,6.499]
[1771998474244,0.08192,1893.3,1891.8,6.499]
[1771998474449,1.32093416,1892.6,1891.8,7.82048949]
[1771998474648,1.32093416,1892.6,1891.8,7.82048059]
[1771998475878,0.1520704,1894.5,1893.3,0.27612424]
[1771998476161,4.72019774,1895.3,1894.5,6.499]
[1771998476380,4.72019774,1894.7,1893.6,3.82961898]
[1771998476585,1.31933083,1894.9,1893.8,3.82961898]
[1771998476733,1.31933083,1894.9,1893.9,3.053266]
[1771998476938,1.18308542,1894.8,1894.0,3.82961898]
[1771998478059,1.18308542,1894.7,1894.0,3.82961898]
[1771998478264,1.18308542,1894.9,1894.0,3.82961898]
[1771998478465,2.50246199,1894.9,1894.2,3.82961898]
[1771998478665,4.72019774,1894.7,1893.8,3.82961898]
[1771998478961,4.72019774,1894.5,1893.8,3.82961898]
[1771998479136,3.88,1894.6,1893.8,3.82961898]
[1771998479661,4.72019774,1894.8,1893.8,3.82961898]
[1771998479662,1.18308542,1894.5,1893.8,3.82961898]
[1771998479861,3.885,1894.4,1893.8,3.82961898]
[1771998480071,1.18308542,1894.7,1893.8,3.82961898]
[1771998480273,5.90328316,1894.6,1893.8,3.82961898]
[1771998480563,1.31960939,1894.5,1893.5,3.82961898]
[1771998480952,3.884,1894.4,1893.5,3.82961898]
[1771998481334,3.884,1894.3,1893.5,3.82961898]
[1771998481538,1.31960939,1894.5,1893.5,3.82961898]
[1771998481734,3.883,1894.4,1893.5,3.82961898]
[1771998482176,5.27759287,1894.9,1893.7,3.82961898]
[1771998482460,5.27759287,1894.9,1893.9,3.82961898]
[1771998482461,1.31953974,1894.6,1893.9,3.82961898]
[1771998483035,1.31953974,1894.6,1893.6,3.82961898]
[1771998483465,4.72019774,1894.2,1893.6,3.82961898]
[1771998483682,4.72019774,1894.2,1893.2,3.82961898]
[1771998483884,3.859,1894.1,1893.2,3.82961898]
[1771998484563,3.859,1894.1,1893.3,3.82961898]
[1771998484564,1.31995776,1894.0,1893.3,3.82961898]
[1771998484880,3.877,1893.9,1893.3,3.82961898]
[1771998485242,3.35023994,1894.2,1893.4,3.82961898]
[1771998486447,1.31988807,1894.1,1893.4,3.82961898]
[1771998486639,3.727,1894.0,1893.4,3.82961898]
[1771998486840,1.31988807,1894.1,1893.4,3.82961898]
[1771998487144,3.873,1894.0,1893.4,3.82961898]
[1771998487346,3.35023994,1893.9,1892.9,3.82961898]
[1771998487753,3.873,1894.0,1892.9,3.82961898]
[1771998488568,1.32002745,1893.9,1893.1,3.82961898]
[1771998488747,3.869,1893.8,1893.1,3.82961898]
[1771998489145,1.32002745,1893.9,1893.1,3.82961898]
[1771998489972,3.869,1893.8,1893.1,3.82961898]
[1771998490767,1.32009715,1893.9,1893.1,1.32057611]
[1771998490971,1.32009715,1893.9,1893.2,3.82961898]
[1771998490972,3.866,1893.8,1893.2,3.82961898]
[1771998491269,3.865,1893.7,1893.2,3.82961898]
[1771998492747,1.32023658,1893.6,1893.2,3.82961898]
[1771998493557,4.67047652,1893.6,1892.7,3.82961898]
[1771998494158,1.32023658,1893.6,1892.8,3.82961898]
[1771998494865,1.32023658,1893.6,1892.7,3.82961898]
[1771998496287,3.35023994,1893.2,1892.7,3.82961898]
[1771998496443,3.35023994,1893.4,1892.7,3.82961898]
[1771998496850,1.32044578,1893.3,1892.7,3.82961898]
[1771998498454,5.28150417,1893.5,1892.8,3.82961898]
[1771998498750,3.867,1893.4,1892.8,3.82961898]
[1771998498972,1.32044578,1893.3,1892.9,3.82961898]
[1771998499381,3.868,1893.2,1892.9,3.82961898]
[1771998500153,3.868,1893.1,1892.9,3.82961898]
[1771998500790,1.32044578,1893.3,1892.9,3.82961898]
[1771998501084,5.18758302,1893.2,1892.4,3.82961898]
[1771998501460,6.39861574,1893.1,1892.3,2.1923331]
[1771998502285,3.35023994,1893.0,1892.3,2.1923331]
[1771998502583,2.53361574,1893.1,1893.0,0.0011]
[1771998502790,3.865,1892.9,1892.3,2.1923331]
[1771998502999,5.28280318,1893.0,1892.3,2.1923331]
[1771998503287,3.865,1893.0,1892.4,2.1923331]
[1771998504971,1.32030631,1893.5,1892.4,2.1923331]
[1771998505272,3.862,1893.4,1892.6,2.1923331]
[1771998505465,7.21223994,1893.4,1892.6,2.1923331]
[1771998507282,1.32044578,1893.3,1892.6,2.1923331]
[1771998507678,3.35023994,1893.2,1892.6,2.1923331]
[1771998508074,1.32044578,1893.3,1892.6,2.1923331]
[1771998508075,4.67068572,1893.3,1892.6,2.1923331]
[1771998508475,3.856,1893.2,1892.6,2.1923331]
[1771998509194,1.32058528,1893.1,1892.6,2.1923331]
[1771998509568,3.854,1893.0,1892.6,2.1923331]
[1771998509894,3.855,1892.9,1892.6,2.1923331]
[1771998510717,1.32058528,1893.1,1892.3,0.59616655]
[1771998510718,3.856,1892.8,1892.3,0.59616655]
[1771998510892,3.856,1892.8,1892.4,0.59616655]
[1771998511262,5.17680056,1892.8,1892.4,0.59616655]
[1771998511685,3.863,1892.7,1892.5,0.59616655]
[1771998511863,1.32058528,1893.1,1892.5,0.59616655]
[1771998512076,3.862,1893.0,1892.5,0.59616655]
[1771998513096,7.21223994,1893.0,1892.0,0.59616655]
[1771998513296,3.35023994,1892.8,1892.1,0.49276489]
[1771998513489,3.35023994,1892.8,1892.0,0.59616655]
[1771998515065,3.35023994,1892.8,1891.8,0.4668621]
[1771998515267,1.32093416,1892.6,1891.8,0.4668621]
[1771998515599,1.32093416,1892.6,1891.8,1.78834762]
[1771998515766,1.32093416,1892.6,1892.1,0.0011]
[1771998515971,0.40383345,1892.5,1891.6,0.4679621]
[1771998516502,0.40383345,1892.5,1892.0,0.0011]
[1771998517273,0.40383345,1892.5,1891.6,0.4679621]
[1771998517691,5.07404715,1892.4,1891.6,0.4679621]
[1771998517895,0.40273345,1892.3,1891.6,0.4679621]
[1771998518091,3.855,1892.2,1891.6,0.4679621]
[1771998518395,3.855,1892.2,1891.6,0.0011]
[1771998518592,4.25773345,1892.2,1891.6,0.0011]
[1771998520595,1.32128323,1892.1,1891.6,0.0011]
[1771998524388,1.32128323,1892.1,1891.6,0.4679621]
[1771998524708,1.32128323,1892.1,1891.6,0.0011]
[1771998528817,1.32128323,1892.1,1891.7,0.4668621]
[1771998528989,3.835,1892.0,1891.7,0.4668621]
[1771998529518,5.284445,1892.4,1891.7,0.4679621]
[1771998529720,5.284445,1892.4,1891.8,0.4668621]
[1771998530015,3.833,1892.3,1891.8,0.4668621]
[1771998530916,1.3212134,1892.2,1891.8,0.4668621]
[1771998531318,1.3212134,1892.2,1891.7,0.0011]
[1771998531693,1.77170449,1892.2,1891.7,0.0011]
[1771998533139,0.45049109,1892.1,1891.7,0.0011]
[1771998535933,0.46331271,1892.5,1891.7,0.18348063]
[1771998536131,0.46331271,1892.3,1891.6,0.0011]
[1771998536296,0.46331271,1892.2,1891.6,0.0011]
[1771998539838,1.82128322,1892.1,1891.5,1e-08]
[1771998542043,1.82149274,1891.8,1891.0,1.3220159]
[1771998542407,1.82149274,1891.8,1890.9,1.32207043]
[1771998542612,0.49999999,1891.7,1890.8,1.32214384]
[1771998543315,0.49999999,1891.7,1891.6,0.0011]
[1771998544042,1.8215626,1891.7,1891.6,0.0011]
[1771998544207,0.49999999,1891.6,1890.7,2.66253945]